Cogmind - Beta 12 @@@ ROGUE MODE // 2023.07.24 @ 14:20:53 Player: CrossedViper Result: Destroyed by Executioner with Helical Railgun Performance ------------- Evolutions (8) 4000 Regions Visited (24) 4800 Robots Destroyed (289) 1445 Value Destroyed (14522) 14522 Prototype IDs (16) 320 Alien Tech Used (11) 2200 Bonus (18889) 18889 TOTAL SCORE: 46176 Bonus ------- Triggered Max Security 1000 High Alert Combat Kills 4063 Follower Combat Kills 2343 Entered Garrisons 1400 Used RIF Installer 3000 Used Core Reset Matrix 3000 Integrated Exoskeleton 5000 Friendly Fire -917 Cogmind --------- Core Integrity 0/1450 Matter 122/300 Energy 448/450 System Corruption 7% Temperature Cool (9) Movement Walking (30) Location -2/Section 7 Parts ------- > --- POWER (1) -------- (None) > --- PROPULSION (3) --- Sigix Exoskeleton > --- UTILITY (4) ------ (None) > --- WEAPON (2) ------- Sigix Sheargun Sigix Sheargun > --- INVENTORY (7) ---- Improved Quantum Reactor Core Expander Core Expander Subatomic Replicator Peak State ------------ > --- POWER ------------ (None) > --- PROPULSION ------- Sigix Exoskeleton > --- UTILITY ---------- (None) > --- WEAPON ----------- Sigix Sheargun Sigix Sheargun > --- INVENTORY -------- Improved Quantum Reactor Core Expander Core Expander Core Expander Subatomic Replicator [Rating: 181] Favorites ----------- Power Improved Ion Engine Engine Improved Ion Engine Power Core Neutrino Core Reactor Particle Reactor Propulsion Light Treads Treads Light Treads Leg Advanced VSS Leg Wheel Wheel Hover Unit Combat Antigrav System Flight Unit Cooled Q-thruster Utility Large Storage Unit Device Improved Heat Sink Storage Large Storage Unit Processor Melee Analysis Suite Hackware Relay Coupler [NC] Protection Improved Medium Armor Plating Artifact Spacefold Activator Weapon Autogun Energy Gun Dispersion Rifle Energy Cannon Neutron Cannon Ballistic Gun Autogun Ballistic Cannon Gauss Cannon Launcher Rocket Launcher Special Weapon Remote Datajack Impact Weapon Heavy Flail Slashing Weapon Katana Piercing Weapon Makeshift Spear Build | -11 -10 -10 -9 -9 -9 -8 -8 -8 -8 -8 -7 -7 -7 -7 -6 -6 -5 -5 -4 -3 -3 -2 -2 -2 ------- Run | Jun Mat Min Mat Min Exi Min Mat Gar Mat Gar Fac Gar Fac Gar Fac Gar Fac Gar Fac Res Gar Res Qua Sec Slots Evolved 16 | . . . 2 . . . 2 . . . 2 . . . 2 . 2 . 2 2 . 2 . . Power 2 | . . . . . . . . . . . . . . . . . . . 1 . . 1 . . Propulsion 4 | . . . . . . . 1 . . . . . . . . . 2 . . 1 . . . . Utility 9 | . . . 2 . . . 1 . . . 2 . . . 2 . . . 1 1 . . . . Weapon 1 | . . . . . . . . . . . . . . . . . . . . . . 1 . . Parts Attached 335 | 6 3 3 25 2 3 2 22 31 23 22 3 29 12 19 . 13 4 33 13 33 3 8 8 15 Power 31 | 1 . . 4 . . . 2 3 3 1 . 4 . 2 . 1 . 1 1 4 . . . 4 Engine 15 | 1 . . 4 . . . 2 3 3 . . 2 . . . . . . . . . . . . Core 9 | . . . . . . . . . . 1 . 2 . 2 . . . . 1 3 . . . . Reactor 7 | . . . . . . . . . . . . . . . . 1 . 1 . 1 . . . 4 Propulsion 76 | 2 . 1 9 . . . 8 4 5 3 . 4 . 5 . 1 . 7 5 8 3 6 2 3 Treads 49 | 2 . . 2 . . . 8 4 5 3 . 4 . . . . . 7 4 5 . 5 . . Leg 16 | . . . 7 . . . . . . . . . . 4 . 1 . . 1 2 . 1 . . Wheel 3 | . . 1 . . . . . . . . . . . 1 . . . . . . 1 . . . Hover 4 | . . . . . . . . . . . . . . . . . . . . . 2 . . 2 Flight 4 | . . . . . . . . . . . . . . . . . . . . 1 . . 2 1 Utility 124 | 1 2 2 5 1 3 2 5 8 6 11 2 7 7 9 . 10 3 17 4 14 . 1 1 3 Device 52 | . 1 2 1 1 1 1 3 5 3 10 1 3 1 . . 1 . 8 2 8 . . . . Storage 7 | 1 1 . 1 . 1 . . . 1 . 1 . . . . . . . . 1 . . . . Processor 7 | . . . 1 . . . . . . . . 1 . . . . . 2 . 1 . 1 . 1 Hackware 33 | . . . . . . . . . . . . 1 5 8 . 8 3 1 1 4 . . 1 1 Protection 24 | . . . 2 . 1 1 2 3 2 1 . 2 1 1 . 1 . 6 1 . . . . . Artifact 1 | . . . . . . . . . . . . . . . . . . . . . . . . 1 Weapon 104 | 2 1 . 7 1 . . 7 16 9 7 1 14 5 3 . 1 1 8 3 7 . 1 5 5 Energy Gun 29 | 2 1 . 3 . . . 2 5 1 3 1 3 2 1 . . . 1 2 2 . . . . Energy Cannon 6 | . . . . . . . . . . . . 1 . . . 1 1 1 1 1 . . . . Ballistic Gun 26 | . . . 3 1 . . 4 5 4 . . 4 1 . . . . 4 . . . . . . Ballistic Cannon 10 | . . . . . . . . . 2 3 . 3 . 1 . . . 1 . . . . . . Launcher 9 | . . . . . . . . 5 2 . . . . . . . . . . 2 . . . . Special Weapon 6 | . . . . . . . . . . . . 1 2 1 . . . . . 2 . . . . Impact Weapon 3 | . . . . . . . . . . 1 . 2 . . . . . . . . . . . . Slashing Weapon 1 | . . . 1 . . . . . . . . . . . . . . . . . . . . . Piercing Weapon 14 | . . . . . . . 1 1 . . . . . . . . . 1 . . . 1 5 5 Special Melee Weapon . | . . . . . . . . . . . . . . . . . . . . . . . . . Unidentified Prototypes 13 | . . 1 . . 1 . . . 2 . . 1 . . . . 1 . 3 1 . . 2 1 Corrupted Parts 1 | . . . 1 . . . . . . . . . . . . . . . . . . . . . System Corruption 1 | . . . 1 . . . . . . . . . . . . . . . . . . . . . Parts Lost 102 | . 2 . 16 . . . 10 2 11 1 . 13 1 . . 1 1 7 4 19 2 5 4 3 Power 11 | . . . 3 . . . 1 . 1 . . 2 . . . . . 1 . 3 . . . . Propulsion 27 | . 1 . 6 . . . 1 . 1 . . 2 . . . . . . . 7 1 3 3 2 Utility 34 | . . . 1 . . . 4 1 6 . . 2 . . . 1 . 5 3 6 1 2 1 1 Weapon 30 | . 1 . 6 . . . 4 1 3 1 . 7 1 . . . 1 1 1 3 . . . . Highest Loss Streak 14 | . 2 . 13 . . . 5 1 5 1 . 5 1 . . 1 1 3 4 14 2 5 2 2 To Critical Strikes 3 | . . . . . . . . . . . . 1 . . . . . . . 2 . . . . Average Slot Usage (%) 82 | . 92 95 91 100 90 96 74 99 95 91 84 77 73 66 73 80 75 81 76 71 46 32 26 22 Engine 5 | . 14 14 10 11 11 11 9 9 8 7 . . . . . . . . . . . . . . Core 2 | . . . . . . . . . . 1 7 6 7 6 6 4 . . 5 4 . . . . Treads 17 | . 21 14 4 22 22 22 26 26 27 27 23 16 15 9 . . . 19 20 18 . 5 14 . Leg 3 | . . . 16 . . . . . . . . . . 5 20 20 17 4 . . . . 3 1 Device 13 | . 7 14 8 11 10 18 8 16 16 24 30 23 5 . . 1 5 17 12 15 4 . . . Storage 7 | . 19 14 11 11 11 11 9 9 9 9 7 7 7 7 6 6 5 5 5 3 . . . . Processor 2 | . . . 9 11 3 . . . . . . 3 7 1 . . . 2 5 8 4 3 1 1 Hackware 4 | . . . . . . . . . . . . . 12 14 26 31 23 1 2 3 19 15 4 2 Protection 6 | . . . 7 11 10 11 3 19 15 2 . 2 2 3 . 1 5 11 7 2 . . . . Energy Gun 4 | . 28 28 2 . . . 4 7 . 9 15 2 3 7 6 5 . . 2 4 . . . 2 Ballistic Gun 6 | . . . 10 22 22 22 12 9 12 1 . 4 3 . . . . 4 4 . . . . . Ballistic Cannon 1 | . . . . . . . . . 4 6 . 5 2 . . . . . . . . . . . Special Weapon 1 | . . . . . . . . . . . . 1 5 6 6 6 4 . . . . . . . Naked Turns . | . . . . . . . . . . . . . . . . . . . . . . . . . Heaviest Build 132 | 12 32 29 36 37 37 38 51 54 54 64 29 41 50 53 28 49 49 83 74 132 1 . 8 25 Greatest Support 180 | 40 40 20 40 40 40 40 62 62 62 60 60 95 95 95 61 71 71 159 157 180 3 3 10 60 Greatest Overweight (x) 2 | . 1 2 2 . . . . 1 . 1 . . . 1 . . . . . . . . 2 1 Average Overweight (x) . | . . 1 . . . . . . . . . . . . . . . . . . . . . . Largest Inventory Capacity 40 | 8 15 15 15 15 40 15 15 15 15 15 40 40 40 40 40 40 40 40 40 40 5 5 5 7 Average Capacity 24 | 7 14 15 15 15 15 15 15 15 15 15 39 40 40 40 40 40 40 40 40 30 5 5 5 5 Most Carried 40 | 5 3 15 15 15 15 15 15 15 15 15 15 40 40 40 39 40 40 40 40 38 4 3 5 5 Average Carried 21 | 2 2 8 12 14 14 15 14 14 14 14 12 27 37 37 39 38 39 35 38 27 2 2 4 4 Final Capacity 40 | 8 15 15 15 15 15 15 15 15 15 15 40 40 40 40 40 40 40 40 40 5 5 5 5 7 Final Carried 40 | 2 3 15 15 15 15 15 15 15 14 15 12 37 33 39 39 40 39 39 39 5 2 3 5 4 Class Distribution -------------------- 45% | Scavenger-Mutant 19% | Hauler-Mutant 11% | Mutant 10% | Botlord-Mutant 8% | Bothacker-Mutant Dominant Class ---------------- Mutant | -10/Materials Mutant | -10/Mines Scavenger-Mutant | -9/Materials Scavenger-Mutant | -9/Mines Scavenger-Mutant | -9/Exiles Scavenger-Mutant | -8/Mines Scavenger-Mutant | -8/Materials Scavenger-Mutant | -8/Garrison Scavenger-Mutant | -8/Materials Scavenger-Mutant | -8/Garrison Hauler-Mutant | -7/Factory Hauler-Mutant | -7/Garrison Bothacker-Mutant | -7/Factory Bothacker-Mutant | -7/Garrison Botlord-Mutant | -6/Factory Botlord-Mutant | -6/Garrison Botlord-Mutant | -5/Factory Hauler-Mutant | -5/Garrison Hauler-Skirmisher | -4/Factory Hauler-Skirmisher | -3/Research Mutant | -3/Garrison Mutant | -2/Research Mutant | -2/Quarantine Sprinter | -2/Section 7 Resources | -11 -10 -10 -9 -9 -9 -8 -8 -8 -8 -8 -7 -7 -7 -7 -6 -6 -5 -5 -4 -3 -3 -2 -2 -2 ----------- Run | Jun Mat Min Mat Min Exi Min Mat Gar Mat Gar Fac Gar Fac Gar Fac Gar Fac Gar Fac Res Gar Res Qua Sec Matter Collected 8771 | 257 33 30 221 116 . 69 424 996 1333 649 . 1600 297 185 . 344 165 1140 280 445 . . 21 166 Remotely . | . . . . . . . . . . . . . . . . . . . . . . . . . Salvage Created 12160 | 127 301 . 842 149 . 93 977 884 1595 827 . 1815 288 40 . 99 . 2548 364 1044 . . 21 146 Parts 634 | 8 10 . 53 12 . 7 60 60 108 57 . 73 19 1 . 5 . 87 26 41 . . 4 3 Haulers Intercepted 7 | . . . 1 . . . 2 . 2 . . . 1 . . . . . 1 . . . . . Recyclers Shooed 4 | . . . . . . . . . 1 . . . . . . . . . . 3 . . . . Parts Field Recycled . | . . . . . . . . . . . . . . . . . . . . . . . . . Retrieved Matter . | . . . . . . . . . . . . . . . . . . . . . . . . . Parts Self-Destructed . | . . . . . . . . . . . . . . . . . . . . . . . . . Prevented . | . . . . . . . . . . . . . . . . . . . . . . . . . Kills | -11 -10 -10 -9 -9 -9 -8 -8 -8 -8 -8 -7 -7 -7 -7 -6 -6 -5 -5 -4 -3 -3 -2 -2 -2 ------- Run | Jun Mat Min Mat Min Exi Min Mat Gar Mat Gar Fac Gar Fac Gar Fac Gar Fac Gar Fac Res Gar Res Qua Sec Combat Hostiles Destroyed 244 | . 7 . 18 3 . 2 18 34 26 34 . 37 5 1 . . . 34 5 18 . . . 2 Melee 12 | . . . 12 . . . . . . . . . . . . . . . . . . . . . Guns 160 | . 7 . 6 3 . 2 18 18 17 24 . 25 4 . . . . 20 4 10 . . . 2 Cannons 49 | . . . . . . . . . 9 10 . 12 1 1 . . . 13 1 2 . . . . AOE 22 | . . . . . . . . 16 . . . . . . . . . 1 . 5 . . . . Classes Destroyed 20 | 3 1 . 6 . . . 1 2 3 1 . 2 . . . . . . . . . . . 1 Worker 8 | 1 . . . . . 1 2 . 2 . . . . . . . . . . 2 . . . . Builder 5 | . . . 1 . . . 2 . 2 . . . . . . . . . . . . . . . Tunneler 4 | 2 1 . . 1 . . . . . . . . . . . . . . . . . . . . Hauler 7 | . . . 1 . . . 2 . 2 . . . 1 . . . . . 1 . . . . . Recycler 7 | 1 . . . 1 . . 2 . 3 . . . . . . . . . . . . . . . Mechanic 1 | . . . . . . . . . 1 . . . . . . . . . . . . . . . Operator 2 | . . . . . . . . . 1 . . . . . . . . . . . . . 1 . Watcher 8 | . . . . . . . 1 . 5 . . . . . . . . . . 2 . . . . Swarmer 87 | . . . 3 3 . . 7 13 5 18 . 21 5 . . . . 7 3 . . . . 2 Saboteur 5 | . . . . . . . . 4 . . . . . . . . . . . 1 . . . . Grunt 83 | . 7 . 9 . . 1 6 10 14 6 . 7 . 1 . . . 12 1 9 . . . . Brawler 11 | . . . 1 . . . 1 . 1 5 . . . . . . . 3 . . . . . . Duelist 5 | . . . 1 . . 1 . . 1 1 . . . . . . . . . 1 . . . . Researcher 1 | . . . . . . . . . . . . . . . . . . . . . . . . 1 Sentry 27 | . . . 4 . . . 4 6 4 3 . 1 . . . . . 5 . . . . . . Specialist 2 | . . . . . . . . . . . . 2 . . . . . . . . . . . . Hunter 8 | . . . . . . . . 1 . . . 3 . . . . . 2 . 2 . . . . Programmer 11 | . . . . . . . . . . . . 3 . . . . . 3 . 5 . . . . Heavy 2 | . . . . . . . . . 1 . . . . . . . . . 1 . . . . . Behemoth 4 | . . . . . . . . . . 1 . . . . . 1 . 2 . . . . . . Infiltrator 2 | . . . . . . . . . . . . . 2 . . . . . . . . . . . Best Kill Streak 9 | 2 3 . 5 3 . 2 7 8 6 4 . 9 3 1 . . . 4 4 6 . . 1 2 Combat Bots Only 9 | . 3 . 4 3 . 2 4 8 6 4 . 9 2 1 . . . 4 3 5 . . . 2 Max Kills in Single Turn 5 | 1 1 . 2 1 . 1 2 5 2 2 . 1 1 1 . 1 . 2 2 3 . . 1 2 Gunslinging 1 | . . . . . . . . . . 1 . . . . . . . . 1 . . . . . Exploded 5 | . . . . . . . . 5 . . . . . . . . . 1 . 2 . . . . Melee 1 | . . . 1 . . . . . . . . . . . . . . . . . . . . . Uniques/NPCs Destroyed . | . . . . . . . . . . . . . . . . . . . . . . . . . Combat | -11 -10 -10 -9 -9 -9 -8 -8 -8 -8 -8 -7 -7 -7 -7 -6 -6 -5 -5 -4 -3 -3 -2 -2 -2 -------- Run | Jun Mat Min Mat Min Exi Min Mat Gar Mat Gar Fac Gar Fac Gar Fac Gar Fac Gar Fac Res Gar Res Qua Sec Damage Taken 25586 | . 521 . 1399 77 . 16 1526 1455 2426 878 13 2514 406 713 . 353 245 2661 925 4844 508 1656 1258 1192 Core 4296 | . 53 . 269 20 . 9 180 91 123 80 . 205 43 129 . 87 61 100 16 837 316 845 182 650 Absorbed by Shields 626 | . . . . . . . . 44 . 124 4 180 . 23 . 10 . 241 . . . . . . Reduced by Siege Mode 359 | . . . . . . . . . . . . 12 . . . . . 38 . 309 . . . . Redirected to Shielding 9 | . . . . . . . 9 . . . . . . . . . . . . . . . . . Core Remaining (%) 60 | 100 . 78 . . . 25 . . . 13 . . . 46 . 89 . 83 98 . 11 . . . Volleys Fired 1076 | 12 33 . 36 11 . 2 81 88 128 78 . 184 30 31 . 63 9 162 24 101 . . . 3 Largest 2 | 2 2 . 2 2 . 2 2 2 2 2 . 2 2 1 . 1 1 2 2 2 . . . 2 Hottest 200 | 80 80 . 80 46 . 46 92 103 103 160 . 160 175 88 . 90 5 184 178 182 . . . 200 Shots Fired 1743 | 24 65 . 55 22 . 4 157 149 233 146 . 295 40 33 . 63 9 260 48 135 . . . 5 Gun 1297 | 24 65 . 55 22 . 4 157 138 183 89 . 219 18 17 . 9 . 168 38 86 . . . 5 Cannon 343 | . . . . . . . . . 48 57 . 68 8 2 . 18 . 92 10 40 . . . . Launcher 20 | . . . . . . . . 11 2 . . . . . . . . . . 7 . . . . Special 83 | . . . . . . . . . . . . 8 14 14 . 36 9 . . 2 . . . . Kinetic 992 | . . . 23 22 . 4 132 79 223 74 . 252 16 2 . . . 129 36 . . . . . Thermal 620 | 24 56 . 30 . . . 25 47 8 72 . 35 10 17 . 27 . 131 12 126 . . . . Explosive 20 | . . . . . . . . 11 2 . . . . . . . . . . 7 . . . . Electromagnetic 23 | . 9 . 2 . . . . 12 . . . . . . . . . . . . . . . . Slashing 5 | . . . . . . . . . . . . . . . . . . . . . . . . 5 Robot Hit Streak 31 | 4 19 . 26 4 . 5 20 25 12 15 . 27 29 5 . 18 3 31 11 19 . . . 1 Robot Miss Streak 8 | 5 2 . 7 3 . . 5 3 3 8 . 3 2 4 . 3 1 5 3 4 . . . 2 Penetration Max 2 | . . . . . . . . . 1 1 . . . . . . . 2 1 . . . . . Secondary Targets 23 | . 1 . 1 2 . 1 5 3 3 2 . 1 . . . . . 2 1 1 . . . . Max Gunslinging Chain 1 | . 1 . 1 1 . 1 1 1 1 1 . 1 . . . . . 1 1 1 . . . . Capacitor 61 | . . . . . . . . . . . . . . . . . . 4 . 57 . . . . Shots Hit Robots 1225 | 11 50 . 67 14 . 4 112 83 145 90 . 224 29 10 . 35 6 210 34 96 . 1 1 3 Core Hits 561 | 5 19 . 29 6 . 3 41 51 66 53 . 105 13 1 . 3 . 99 11 52 . . 1 3 Critical Kills 22 | . . . . . . . . 1 . . . 2 . . . . . 14 4 1 . . . . Critical Parts Destroyed 37 | . . . . 1 . . 1 . 1 . . 3 . . . . . 24 6 1 . . . . Critical Strikes 97 | . . . 1 1 . . 3 3 7 10 . 10 . 1 . . . 49 10 2 . . . . Burn 5 | . . . . . . . 2 1 . 2 . . . . . . . . . . . . . . Destroy 67 | . . . . 1 . . 1 1 1 . . 5 . . . . . 46 10 2 . . . . Blast 23 | . . . . . . . . . 6 8 . 5 . 1 . . . 3 . . . . . . Corrupt 1 | . . . . . . . . 1 . . . . . . . . . . . . . . . . Sever 1 | . . . 1 . . . . . . . . . . . . . . . . . . . . . Melee Attacks 84 | . . . 31 . . . 9 8 . 1 . 4 . . . . . . . . . 1 9 21 Impact 5 | . . . . . . . . . . 1 . 4 . . . . . . . . . . . . Slashing 31 | . . . 31 . . . . . . . . . . . . . . . . . . . . . Piercing 48 | . . . . . . . 9 8 . . . . . . . . . . . . . 1 9 21 Sneak Attacks 3 | . . . 2 . . . . . . . . . . . . . . . . . . . . 1 Combat Hostiles . | . . . . . . . . . . . . . . . . . . . . . . . . . Follow-up Attacks . | . . . . . . . . . . . . . . . . . . . . . . . . . Damage Inflicted 29041 | 121 603 . 1480 225 . 86 2058 2843 3129 2045 . 4128 397 61 . 519 . 5654 596 4663 . 53 52 328 Guns 16334 | 121 602 . 525 225 . 59 1810 1487 2253 1030 . 3130 228 25 . 29 . 2503 253 1865 . . . 189 Cannons 8027 | . . . . . . . . . 848 1015 . 998 163 36 . 490 . 2871 343 1263 . . . . Explosions 3358 | . . . . . . . 195 1356 . . . . . . . . . 280 . 1527 . . . . Melee 1173 | . . . 941 . . . 53 . . . . . . . . . . . . . . 26 52 101 Ramming 149 | . 1 . 14 . . 27 . . 28 . . . 6 . . . . . . 8 . 27 . 38 Kinetic 12407 | . . . 240 225 . 59 1464 784 3015 1194 . 3566 213 36 . . . 1385 226 . . . . . Thermal 11891 | 121 521 . 285 . . . 346 544 86 851 . 562 178 25 . 519 . 4269 370 3214 . . . . Explosive 2992 | . . . . . . . 195 1356 . . . . . . . . . . . 1441 . . . . Electromagnetic 240 | . 81 . . . . . . 159 . . . . . . . . . . . . . . . . Impact . | . . . . . . . . . . . . . . . . . . . . . . . . . Slashing 1130 | . . . 941 . . . . . . . . . . . . . . . . . . . . 189 Piercing 232 | . . . . . . . 53 . . . . . . . . . . . . . . 26 52 101 Highest Corruption 12 | . . . 1 1 1 1 9 9 10 10 . 2 2 3 . . . 12 . 10 10 1 3 7 Average Corruption 5 | . . . 1 1 1 1 8 9 9 10 . 1 2 2 . . . 10 . 5 10 1 2 3 Corruption Purged . | . . . . . . . . . . . . . . . . . . . . . . . . . Corruption Blocked . | . . . . . . . . . . . . . . . . . . . . . . . . . Effects 297 | . . . 3 8 3 3 25 55 47 71 . 7 5 18 . . . 31 . 6 3 . 3 9 Message Errors 65 | . . . . . 2 1 5 9 10 10 . 4 2 9 . . . 6 . 1 2 . 1 3 Matter Fused 66 | . . . 1 2 . 1 4 14 14 18 . 1 1 1 . . . 5 . 1 . . 1 2 Heat Flow Errors 29 | . . . . 2 . . 3 7 3 6 . 1 . 4 . . . 3 . . . . . . Energy Discharges 40 | . . . 1 1 . 1 4 9 7 9 . . 1 1 . . . 4 . . . . . 2 Parts Rejected 4 | . . . . . . . 1 . 2 . . . . . . . . . . . . . 1 . Data Loss (minor) 29 | . . . . 2 . . 1 6 1 9 . . . . . . . 8 . . 1 . . 1 Data Loss (major) 20 | . . . 1 1 1 . . 2 5 5 . 1 1 1 . . . . . 2 . . . . Misfires 19 | . . . . . . . 3 6 1 5 . . . 2 . . . 1 . 1 . . . . Alerts 9 | . . . . . . . . 1 2 5 . . . . . . . 1 . . . . . . Weapon Failures 16 | . . . . . . . 4 1 2 4 . . . . . . . 3 . 1 . . . 1 Overload Shots . | . . . . . . . . . . . . . . . . . . . . . . . . . Overflow Damage 208 | . . . 14 . . . . 29 3 . . 14 . . . . . 84 . 61 . . . 3 Projectiles 86 | . . . . . . . . . . . . 14 . . . . . 72 . . . . . . Explosions 105 | . . . . . . . . 29 3 . . . . . . . . 12 . 61 . . . . Melee 17 | . . . 14 . . . . . . . . . . . . . . . . . . . . 3 Knockbacks 20 | . . . . . . . . . 8 2 . 8 2 . . . . . . . . . . . Impact . | . . . . . . . . . . . . . . . . . . . . . . . . . Kinetic 19 | . . . . . . . . . 8 2 . 8 1 . . . . . . . . . . . Secondary 1 | . . . . . . . . . . . . . 1 . . . . . . . . . . . Self-Inflicted Damage 236 | . . . . . . . . 121 23 . . . . . . . . . . 80 . 12 . . Shots 8 | . . . . . . . . 6 1 . . . . . . . . . . 1 . . . . Rammed 20 | . 1 . . . . 2 . . 6 . . . 2 . . . . . . 3 . 6 . . Targets Rammed 29 | . 1 . 7 . . 3 . . 6 . . . 2 . . . . . . 3 . 6 . 1 Kicked 8 | . . . 7 . . . . . . . . . . . . . . . . . . . . 1 Crushed 1 | . . . . . . 1 . . . . . . . . . . . . . . . . . . Highest Temperature 423 | 54 342 . . 218 . 8 243 252 274 227 . 225 297 177 . 375 7 383 357 423 . . . . Average Temperature 84 | 21 112 . . 74 . 6 59 79 62 66 . 68 135 44 . 121 7 78 137 130 . . . . Received Heat Transfer 4901 | . 297 . 324 . . . 612 515 918 330 7 271 36 81 . 93 51 435 54 556 33 198 45 45 Effects 8 | . 1 . . . . . . . . . . 1 1 . . . . . . 5 . . . . Shutdowns 2 | . . . . . . . . . . . . . . . . . . . . 2 . . . . Energy Bleed 3 | . . . . . . . . . . . . 1 1 . . . . . . 1 . . . . Short Circuit 1 | . . . . . . . . . . . . . . . . . . . . 1 . . . . Damage (minor) 2 | . 1 . . . . . . . . . . . . . . . . . . 1 . . . . Siege Activations 3 | . . . . . . . . . . . . 1 . . . . . 1 . 1 . . . . Total Turns 107 | . . . . . . . . . . . . 28 . . . . . 33 . 46 . . . . Longest Duration 46 | . . . . . . . . . . . . 28 . . . . . 33 . 46 . . . . Robots Corrupted . | . . . . . . . . . . . . . . . . . . . . . . . . . Combat Hostiles . | . . . . . . . . . . . . . . . . . . . . . . . . . Parts Fried . | . . . . . . . . . . . . . . . . . . . . . . . . . Impact Corruptions 2 | . . . . . . . . . . . . 1 . . . . . . . . . . . 1 Robots Melted 1 | . . . . . . . . . . . . . . . . . . . . 1 . . . . Combat Hostiles 1 | . . . . . . . . . . . . . . . . . . . . 1 . . . . Parts Melted 22 | 1 2 . . . . . 2 2 . 4 . 1 . . . . . 4 . 6 . . . . Heat Transferred 12390 | 275 1100 . 625 . . . 814 980 148 2050 . 1258 259 17 . 518 . 1928 37 2381 . . . . Parts Sabotaged . | . . . . . . . . . . . . . . . . . . . . . . . . . Parts Stolen . | . . . . . . . . . . . . . . . . . . . . . . . . . Parts Stripped . | . . . . . . . . . . . . . . . . . . . . . . . . . Power Chain Reactions 5 | . . . . . . . . . . . . . . . . . . 4 . 1 . . . . Missiles Intercepted . | . . . . . . . . . . . . . . . . . . . . . . . . . Alert | -11 -10 -10 -9 -9 -9 -8 -8 -8 -8 -8 -7 -7 -7 -7 -6 -6 -5 -5 -4 -3 -3 -2 -2 -2 ------- Run | Jun Mat Min Mat Min Exi Min Mat Gar Mat Gar Fac Gar Fac Gar Fac Gar Fac Gar Fac Res Gar Res Qua Sec Peak Influence 2113 | 20 210 81 395 202 . 132 469 1120 623 1571 824 2048 1266 2113 1108 1649 1074 1965 1252 1054 726 616 516 1615 Initial 1108 | . 13 81 . 127 . . 1 . 546 398 824 576 1075 709 1108 775 865 751 1031 657 711 396 346 247 Average 780 | 6 119 50 232 72 . 69 309 533 440 999 824 1245 1123 1442 1108 1367 905 1345 1117 797 712 435 435 445 Maximum Alert Level 5 | . 1 . 1 1 . . 2 4 2 4 3 5 4 5 4 5 3 5 4 3 3 2 2 5 Low Security (%) 17 | 100 72 100 24 79 . 100 18 17 . . . . . . . . . . . . . . . 25 Level 1 15 | . 27 . 75 20 . . 49 20 31 7 . . . . . . . . . . . 34 25 44 Level 2 14 | . . . . . . . 32 34 68 10 . 5 . . . . . . . 25 . 65 74 17 Level 3 19 | . . . . . . . . 16 . 48 100 30 39 22 . 12 100 14 33 74 100 . . . Level 4 25 | . . . . . . . . 11 . 33 . 38 60 42 100 81 . 62 66 . . . . . Level 5 7 | . . . . . . . . . . . . 25 . 35 . 5 . 22 . . . . . . High Security . | . . . . . . . . . . . . . . . . . . . . . . . . . Max Security . | . . . . . . . . . . . . . . . . . . . . . . . . 12 Squads Dispatched 45 | . 2 . 4 . . . 2 . 6 . . . 5 . . . 3 . 5 6 . 2 3 7 Investigation 13 | . 1 . 3 . . . 1 . . . . . 3 . . . . . 1 . . 2 2 . Extermination 4 | . . . . . . . . . . . . . . . . . . . 1 2 . . . 1 Reinforcement 13 | . 1 . 1 . . . 1 . 3 . . . . . . . 2 . 2 2 . . 1 . Assault 10 | . . . . . . . . . . . . . 1 . . . . . 1 2 . . . 6 Garrison 5 | . . . . . . . . . 3 . . . 1 . . . 1 . . . . . . . Intercept . | . . . . . . . . . . . . . . . . . . . . . . . . . Searches Triggered 2 | . . . . . . . . . . . . . . . . . . . . . . . 1 1 Construction Impeded 3 | . . . . . . . . . . . . . . . . . 1 . 1 1 . . . . Haulers Reinforced . | . . . . . . . . . . . . . . . . . . . . . . . . . Active Scanning Responses 1 | . . . . . . . . . . . . . . . . . . . 1 . . . . . Cargo Convoy Interrupts . | . . . . . . . . . . . . . . . . . . . . . . . . . Stealth | -11 -10 -10 -9 -9 -9 -8 -8 -8 -8 -8 -7 -7 -7 -7 -6 -6 -5 -5 -4 -3 -3 -2 -2 -2 --------- Run | Jun Mat Min Mat Min Exi Min Mat Gar Mat Gar Fac Gar Fac Gar Fac Gar Fac Gar Fac Res Gar Res Qua Sec Distress Signals 17 | . 1 1 3 . . . 1 . 2 . . . . . . . 1 . . 4 . 2 1 1 Communications Jammed 6 | . . . . . . . . . . . . . . . . . . . . 6 . . . . Distress Signals 6 | . . . . . . . . . . . . . . . . . . . . 6 . . . . Times Spotted 562 | . 11 1 36 4 . 6 29 37 44 36 1 48 15 37 . 35 18 46 11 47 15 20 21 44 Peak Tracking Total 21 | . 3 1 8 4 . 3 5 4 6 4 1 8 4 7 . 11 6 7 5 15 15 15 7 21 Tactical Retreats 35 | . . . 7 . . . 1 . . 1 . 5 . 1 . . . 2 2 5 . 3 4 4 Traps | -11 -10 -10 -9 -9 -9 -8 -8 -8 -8 -8 -7 -7 -7 -7 -6 -6 -5 -5 -4 -3 -3 -2 -2 -2 ------- Run | Jun Mat Min Mat Min Exi Min Mat Gar Mat Gar Fac Gar Fac Gar Fac Gar Fac Gar Fac Res Gar Res Qua Sec Traps Triggered 28 | . . . . . . . 1 2 2 6 . 1 2 3 . 3 . 6 . 2 . . . . Indirectly . | . . . . . . . . . . . . . . . . . . . . . . . . . Trap Hack Attempts . | . . . . . . . . . . . . . . . . . . . . . . . . . Triggered . | . . . . . . . . . . . . . . . . . . . . . . . . . Disarmed . | . . . . . . . . . . . . . . . . . . . . . . . . . Reprogrammed . | . . . . . . . . . . . . . . . . . . . . . . . . . Reused . | . . . . . . . . . . . . . . . . . . . . . . . . . Traps Extracted . | . . . . . . . . . . . . . . . . . . . . . . . . . Installed . | . . . . . . . . . . . . . . . . . . . . . . . . . Triggered . | . . . . . . . . . . . . . . . . . . . . . . . . . Most Traps Carried 1 | . . 1 1 1 1 1 1 . . . . . . . . . . . . . . . . . Machines | -11 -10 -10 -9 -9 -9 -8 -8 -8 -8 -8 -7 -7 -7 -7 -6 -6 -5 -5 -4 -3 -3 -2 -2 -2 ---------- Run | Jun Mat Min Mat Min Exi Min Mat Gar Mat Gar Fac Gar Fac Gar Fac Gar Fac Gar Fac Res Gar Res Qua Sec Machines Disabled 50 | . . . . . . . 6 4 2 7 . 5 . 9 . 5 . 1 . 2 . . 2 7 Max in Single Turn 2 | . . . . . . . 2 1 1 1 . 1 . 1 . 1 . 1 . 1 . . 1 1 Garrison Access 2 | . . . . . . . . . . . . . . . . . . . . 1 . 1 . . Garrison Relay 23 | . . . . . . . . 3 . . . 5 . 9 . 4 . 2 . . . . . . Machines Repaired . | . . . . . . . . . . . . . . . . . . . . . . . . . Machines Sabotaged . | . . . . . . . . . . . . . . . . . . . . . . . . . Overloaded Fab Kills . | . . . . . . . . . . . . . . . . . . . . . . . . . Hacking | -11 -10 -10 -9 -9 -9 -8 -8 -8 -8 -8 -7 -7 -7 -7 -6 -6 -5 -5 -4 -3 -3 -2 -2 -2 --------- Run | Jun Mat Min Mat Min Exi Min Mat Gar Mat Gar Fac Gar Fac Gar Fac Gar Fac Gar Fac Res Gar Res Qua Sec Machines Accessed 68 | . 2 . 6 . 1 . 7 2 8 4 1 1 4 4 1 4 1 2 . 6 . 6 3 5 Terminals 55 | . 2 . 5 . . . 6 2 7 4 . 1 2 4 . 4 . 2 . 3 . 5 3 5 Fabricators 2 | . . . . . . . . . . . . . 1 . . . . . . 1 . . . . Repair Stations . | . . . . . . . . . . . . . . . . . . . . . . . . . Recycling Units 1 | . . . 1 . . . . . . . . . . . . . . . . . . . . . Scanalyzers . | . . . . . . . . . . . . . . . . . . . . . . . . . Garrison Access 9 | . . . . . . . 1 . 1 . 1 . 1 . 1 . 1 . . 2 . 1 . . Total Hacks 140 | . 7 . 18 . 1 . 19 2 18 7 1 1 9 6 1 10 1 4 . 12 . 9 5 9 Successful 62 | . 4 . 6 . 1 . 12 2 8 1 1 1 3 4 1 3 1 1 . 5 . 1 1 6 Failed 78 | . 3 . 12 . . . 7 . 10 6 . . 6 2 . 7 . 3 . 7 . 8 4 3 Catastrophic 19 | . . . 3 . . . 3 . 2 1 . . 1 1 . . . 1 . 1 . 3 3 . Database Lockouts . | . . . . . . . . . . . . . . . . . . . . . . . . . Manual 64 | . 5 . 18 . 1 . 12 . 14 . . . . . . . . . . 7 . . 4 3 Terminals 121 | . 7 . 17 . . . 18 2 15 7 . 1 7 6 . 10 . 4 . 5 . 8 5 9 Fabricators 6 | . . . . . . . . . . . . . 1 . . . . . . 5 . . . . Repair Stations . | . . . . . . . . . . . . . . . . . . . . . . . . . Recycling Units 1 | . . . 1 . . . . . . . . . . . . . . . . . . . . . Scanalyzers . | . . . . . . . . . . . . . . . . . . . . . . . . . Garrison Access 11 | . . . . . . . 1 . 3 . 1 . 1 . 1 . 1 . . 2 . 1 . . Terminal Hacks 36 | . 3 . 3 . 1 . 7 2 3 1 . 1 1 4 . 3 . 1 . . . . . 6 Record 2 | . . . . . 1 . 1 . . . . . . . . . . . . . . . . . Robot Analysis 3 | . 2 . 1 . . . . . . . . . . . . . . . . . . . . . Prototype ID Bank 1 | . 1 . . . . . . . . . . . . . . . . . . . . . . . Open Door 4 | . . . . . . . . 1 . . . . . 1 . 1 . . . . . . . 1 Branch Access Points 1 | . . . . . . . 1 . . . . . . . . . . . . . . . . . Emergency Access Points 4 | . . . . . . . . 1 . . . 1 . 1 . 1 . . . . . . . . Terminal Index 2 | . . . . . . . . . 1 . . . . . . . . . . . . . . 1 Alert Level 3 | . . . 1 . . . 2 . . . . . . . . . . . . . . . . . Unreport Threat 7 | . . . . . . . 2 . 2 . . . 1 . . . . . . . . . . 2 Hauler Manifests 1 | . . . 1 . . . . . . . . . . . . . . . . . . . . . Zone Layout 2 | . . . . . . . 1 . . . . . . . . . . . . . . . . 1 Patrol Navigation 3 | . . . . . . . . . . 1 . . . 1 . 1 . . . . . . . . Security Stations 2 | . . . . . . . . . . . . . . 1 . . . 1 . . . . . . Activate Exoskeleton 1 | . . . . . . . . . . . . . . . . . . . . . . . . 1 Fabricator Hacks 1 | . . . . . . . . . . . . . 1 . . . . . . . . . . . Build 1 | . . . . . . . . . . . . . 1 . . . . . . . . . . . Repair Station Hacks . | . . . . . . . . . . . . . . . . . . . . . . . . . Recycling Unit Hacks . | . . . . . . . . . . . . . . . . . . . . . . . . . Scanalyzer . | . . . . . . . . . . . . . . . . . . . . . . . . . Garrison Access Hacks 9 | . . . . . . . 1 . 1 . 1 . 1 . 1 . 1 . . 2 . 1 . . Unlock Access 7 | . . . . . . . 1 . 1 . 1 . 1 . 1 . 1 . . 1 . . . . Seal Access 2 | . . . . . . . . . . . . . . . . . . . . 1 . 1 . . Unauthorized Hacks 16 | . 1 . 3 . . . 4 . 4 . . . . . . . . . . 3 . . 1 . Terminals 13 | . 1 . 2 . . . 4 . 4 . . . . . . . . . . 1 . . 1 . Assimilate 2 | . . . . . . . 1 . . . . . . . . . . . . . . . 1 . Botnet 8 | . 1 . 2 . . . 2 . 3 . . . . . . . . . . . . . . . Operators 3 | . . . . . . . 1 . 1 . . . . . . . . . . 1 . . . . Fabricators 2 | . . . . . . . . . . . . . . . . . . . . 2 . . . . Liberate 1 | . . . . . . . . . . . . . . . . . . . . 1 . . . . Haulers 1 | . . . . . . . . . . . . . . . . . . . . 1 . . . . Repair Stations . | . . . . . . . . . . . . . . . . . . . . . . . . . Recycling Units 1 | . . . 1 . . . . . . . . . . . . . . . . . . . . . Tunnel 1 | . . . 1 . . . . . . . . . . . . . . . . . . . . . Scanalyzers . | . . . . . . . . . . . . . . . . . . . . . . . . . Garrison Access . | . . . . . . . . . . . . . . . . . . . . . . . . . Data Cores Recovered . | . . . . . . . . . . . . . . . . . . . . . . . . . Used . | . . . . . . . . . . . . . . . . . . . . . . . . . Hacking Detections 58 | . 2 . 5 . . . 7 1 8 4 1 1 2 3 1 3 1 2 . 5 . 5 3 4 Full Trace Events 17 | . 2 . 5 . . . . . . 3 . . 1 1 . 1 . . . . . 2 2 . Feedback Events . | . . . . . . . . . . . . . . . . . . . . . . . . . Feedback Blocked . | . . . . . . . . . . . . . . . . . . . . . . . . . Robot Schematics Acquired 1 | . . . . . . . . . . . . . . . . . . . . . . . . 1 Robots Built 3 | . . . . . . . . . . . . . 3 . . . . . . . . . . . Authchips 1 | . . . . . . . . . . . . . 1 . . . . . . . . . . . Time 67 | . . . . . . . . . . . . . 67 . . . . . . . . . . . Total Robot Build Rating 12 | . . . . . . . . . . . . . 12 . . . . . . . . . . . Part Schematics Acquired 1 | . . . . . . . . . . . . . . . . . . . . . . . . 1 Parts Built . | . . . . . . . . . . . . . . . . . . . . . . . . . Authchips . | . . . . . . . . . . . . . . . . . . . . . . . . . Time . | . . . . . . . . . . . . . . . . . . . . . . . . . Total Part Build Rating . | . . . . . . . . . . . . . . . . . . . . . . . . . Parts Repaired . | . . . . . . . . . . . . . . . . . . . . . . . . . Time . | . . . . . . . . . . . . . . . . . . . . . . . . . Parts Recycled . | . . . . . . . . . . . . . . . . . . . . . . . . . Recycled Matter . | . . . . . . . . . . . . . . . . . . . . . . . . . Retrieved Matter . | . . . . . . . . . . . . . . . . . . . . . . . . . Retrieved Components . | . . . . . . . . . . . . . . . . . . . . . . . . . Parts Scanalyzed . | . . . . . . . . . . . . . . . . . . . . . . . . . Part Schematics Acquired . | . . . . . . . . . . . . . . . . . . . . . . . . . Parts Damaged . | . . . . . . . . . . . . . . . . . . . . . . . . . Bothacking | -11 -10 -10 -9 -9 -9 -8 -8 -8 -8 -8 -7 -7 -7 -7 -6 -6 -5 -5 -4 -3 -3 -2 -2 -2 ------------ Run | Jun Mat Min Mat Min Exi Min Mat Gar Mat Gar Fac Gar Fac Gar Fac Gar Fac Gar Fac Res Gar Res Qua Sec Used RIF Installer 6 | . . . . . . . . 1 . 1 . 1 . 1 . 1 . 1 . . . . . . Command Fork 2 | . . . . . . . . . . 1 . . . 1 . . . . . . . . . . Robot Detection 1 | . . . . . . . . . . . . . . . . . . 1 . . . . . . Structural Interface 1 | . . . . . . . . . . . . . . . . 1 . . . . . . . . Program Shield 1 | . . . . . . . . . . . . 1 . . . . . . . . . . . . Robots Hacked 39 | . . . . . . . . . . . . . 10 10 . 10 7 . . 2 . . . . Non-combat 6 | . . . . . . . . . . . . . 3 . . . 1 . . 2 . . . . Combat 33 | . . . . . . . . . . . . . 7 10 . 10 6 . . . . . . . Robot Hacks Applied 43 | . . . . . . . . . . . . . 13 10 . 10 8 . . 2 . . . . parse_system 3 | . . . . . . . . . . . . . 1 1 . . 1 . . . . . . . start_evac 1 | . . . . . . . . . . . . . 1 . . . . . . . . . . . drop_inventory 1 | . . . . . . . . . . . . . 1 . . . . . . . . . . . purge_threat 1 | . . . . . . . . . . . . . . . . . . . . 1 . . . . map_route 3 | . . . . . . . . . . . . . 1 . . . 1 . . 1 . . . . mark_security 1 | . . . . . . . . . . . . . 1 . . . . . . . . . . . find_shortcuts 1 | . . . . . . . . . . . . . 1 . . . . . . . . . . . scatter_targeting 3 | . . . . . . . . . . . . . 3 . . . . . . . . . . . overload_power 1 | . . . . . . . . . . . . . . . . . 1 . . . . . . . overwrite_iff 2 | . . . . . . . . . . . . . . . . . 2 . . . . . . . formatsys_high 26 | . . . . . . . . . . . . . 4 9 . 10 3 . . . . . . . Relay Couplers Released 101 | . . . . . . . . 11 . . . 21 . 38 . 20 . 9 . 2 . . . . Machine Destruction 101 | . . . . . . . . 11 . . . 21 . 38 . 20 . 9 . 2 . . . . Attached 29 | . . . . . . . . . . . . . 4 8 . 8 3 1 1 4 . . . . Fabnet Peak Effective % . | . . . . . . . . . . . . . . . . . . . . . . . . . Robots Rewired 16 | . . . . . 2 . . . . . . 3 . 3 . 5 . 3 . . . . . . Allies Hacked . | . . . . . . . . . . . . . . . . . . . . . . . . . Hacks Repelled . | . . . . . . . . . . . . . . . . . . . . . . . . . Allies | -11 -10 -10 -9 -9 -9 -8 -8 -8 -8 -8 -7 -7 -7 -7 -6 -6 -5 -5 -4 -3 -3 -2 -2 -2 -------- Run | Jun Mat Min Mat Min Exi Min Mat Gar Mat Gar Fac Gar Fac Gar Fac Gar Fac Gar Fac Res Gar Res Qua Sec Total Allies 72 | . . 2 . 3 2 . . 2 . 2 . 5 8 15 . 20 10 3 . . . . . . Largest Group 17 | . . 2 1 3 5 5 3 2 . 2 . 5 9 10 10 17 13 10 1 . . . . . Highest-Rated Group 521 | . . 45 31 40 69 69 45 62 . 78 . 223 223 392 392 521 469 337 41 . . . . . Highest-Rated Ally 131 | . . 31 31 16 21 21 21 31 . 39 . 95 95 95 95 95 131 49 41 . . . . . Total Orders 2 | . . . . . . . . . . . . . 1 . . . . 1 . . . . . . STAY 2 | . . . . . . . . . . . . . 1 . . . . 1 . . . . . . Ally Attacks 487 | . . 8 21 . . 19 15 7 . 20 . 5 32 97 . 111 90 59 3 . . . . . Total Damage 10444 | . . 84 312 . . 224 299 86 . 274 . 287 486 2802 . 1834 2024 1609 123 . . . . . Kills 95 | . . 4 2 . . 4 4 2 . 1 . 4 6 28 . 19 11 10 . . . . . . Allies Corrupted 1 | . . . . . . . . . . . . . . . . . . 1 . . . . . . Allies Melted 1 | . . . . . . . . . . 1 . . . . . . . . . . . . . . Intel | -11 -10 -10 -9 -9 -9 -8 -8 -8 -8 -8 -7 -7 -7 -7 -6 -6 -5 -5 -4 -3 -3 -2 -2 -2 ------- Run | Jun Mat Min Mat Min Exi Min Mat Gar Mat Gar Fac Gar Fac Gar Fac Gar Fac Gar Fac Res Gar Res Qua Sec Robot Analysis Total 3 | . 2 . 1 . . . . . . . . . . . . . . . . . . . . . Derelict Logs Recovered 3 | . . 1 . 2 . . . . . . . . . . . . . . . . . . . . Drone Launches . | . . . . . . . . . . . . . . . . . . . . . . . . . Drone Recoveries . | . . . . . . . . . . . . . . . . . . . . . . . . . Exploration | -11 -10 -10 -9 -9 -9 -8 -8 -8 -8 -8 -7 -7 -7 -7 -6 -6 -5 -5 -4 -3 -3 -2 -2 -2 ------------- Run | Jun Mat Min Mat Min Exi Min Mat Gar Mat Gar Fac Gar Fac Gar Fac Gar Fac Gar Fac Res Gar Res Qua Sec Turns Passed 19348 | 153 395 642 1084 1110 619 567 810 1577 1501 1792 62 1930 492 1254 63 1272 154 1826 317 701 86 226 272 443 Spaces Moved 11142 | 81 136 439 320 650 371 343 319 801 656 764 34 869 237 724 41 879 109 863 123 382 166 394 491 950 Core 1094 | 23 . . . . . . . . . . . . . . . . . . . 172 166 394 339 . Treads 7079 | 58 136 45 81 650 371 343 319 801 656 764 34 869 237 611 . . . 771 123 210 . . . . Legs 1572 | . . . 205 . . . . . . . . . . 95 41 879 109 92 . . . . . 151 Wheels 446 | . . 394 34 . . . . . . . . . . 18 . . . . . . . . . . Hover 19 | . . . . . . . . . . . . . . . . . . . . . . . . 19 Flight 921 | . . . . . . . . . . . . . . . . . . . . . . . 152 769 Fastest Speed 24 | 50 160 110 110 160 160 160 155 155 155 166 166 163 165 90 110 105 106 106 162 50 50 50 27 24 Average Speed 131 | 128 198 123 165 160 160 160 158 155 161 169 166 164 165 153 110 109 106 158 163 112 50 50 44 29 Slowest Speed 260 | 160 240 240 260 160 160 160 160 232 170 246 166 166 165 165 110 110 106 170 165 164 50 50 150 85 Overloaded Moves 260 | . . . . . . . . . . . . . . . . . . . . . . . 150 110 Propulsion Burnouts . | . . . . . . . . . . . . . . . . . . . . . . . . . Robots Hopped 1 | . . . . . . . . . . . . . . . . . . . . . . . 1 . Cave-ins Triggered 1 | . . . . . . . . . . . . . . . . . . . . . . . 1 . Teleports 3 | . . . . . . . . . . . . . . . . . . . . . . . 2 1 Spacefolds 4 | . . . . . . . . . . . . . . . . . . . . . . . . 4 Exploration Rate (%) 49 | 5 16 79 29 93 88 79 40 85 64 79 3 94 11 84 2 87 6 83 3 19 36 13 66 62 Regions Visited 24 Branch Regions 6 Pre-discovered Areas 2 | . . . 1 . 1 . . . . . . . . . . . . . . . . . . . Known Exits Taken 8 | . . . . . . . 1 . 1 . 1 . 1 . 1 . 1 . 1 1 . . . . Unknown Exits Taken 9 | 1 1 1 1 1 1 1 . . . . . . . . . . . . . . . 1 1 . Scrap Searched 4 | . . 1 . 2 . 1 . . . . . . . . . . . . . . . . . . Spaces Dug 67 | . . . 2 . . . 1 23 15 . . 1 . . . . . . . 6 . . 4 15 Terrain Destroyed 271 | . . . 2 . . . 2 32 50 . . 4 4 . . . . 42 3 113 . . 4 15 Melee 24 | . . . 2 . . . 1 1 . . . 1 . . . . . . . . . . 4 15 Projectile 62 | . . . . . . . . 7 28 . . 3 4 . . . . 14 1 5 . . . . AOE 181 | . . . . . . . 1 24 22 . . . . . . . . 26 . 108 . . . . Terrain Rammed . | . . . . . . . . . . . . . . . . . . . . . . . . . Walls Destroyed . | . . . . . . . . . . . . . . . . . . . . . . . . . Machines Disabled . | . . . . . . . . . . . . . . . . . . . . . . . . . Actions | -11 -10 -10 -9 -9 -9 -8 -8 -8 -8 -8 -7 -7 -7 -7 -6 -6 -5 -5 -4 -3 -3 -2 -2 -2 --------- Run | Jun Mat Min Mat Min Exi Min Mat Gar Mat Gar Fac Gar Fac Gar Fac Gar Fac Gar Fac Res Gar Res Qua Sec Total 14397 | 106 196 538 770 703 400 356 473 985 912 1121 39 1174 308 845 58 1144 144 1149 208 604 168 417 525 1054 Wait 1244 | . 20 85 321 37 1 6 17 19 76 230 . 27 18 12 17 160 13 37 32 59 . 7 2 48 Move 11113 | 80 135 438 319 649 370 342 318 800 655 763 34 868 236 723 41 878 109 862 122 382 165 393 488 943 Hop 1 | . . . . . . . . . . . . . . . . . . . . . . . 1 . Pick Up 236 | 8 3 12 19 2 3 . 14 13 11 10 . 51 4 28 . 17 4 16 7 3 . 1 5 5 Fast Attach 123 | . 1 1 9 . 1 2 8 10 9 11 1 7 1 7 . 3 1 16 5 8 . 7 4 11 Attach 154 | 6 2 . 13 . 2 . 9 3 9 7 1 14 5 9 . 9 3 11 8 22 3 1 7 10 Detach 23 | . . . . . . . . . . 1 . . . 2 . . . 1 2 3 . 1 5 8 Swap 67 | . . 2 3 2 . . 5 18 5 4 1 8 6 3 . 1 . 6 . 3 . . . . Drop 186 | . 1 . 12 2 7 1 12 26 13 16 2 11 5 15 . 6 4 17 8 20 . . 4 4 Fire 1076 | 12 33 . 36 11 . 2 81 88 128 78 . 184 30 31 . 63 9 162 24 101 . . . 3 Melee 84 | . . . 31 . . . 9 8 . 1 . 4 . . . . . . . . . 1 9 21 Ram 9 | . . . . . . . . . . . . . . . . . . . . 3 . 6 . . Kick 8 | . . . 7 . . . . . . . . . . . . . . . . . . . . 1 Crush 12 | . 1 . . . . 3 . . 6 . . . 2 . . . . . . . . . . . Escape Stasis 5 | . . . . . . . . . . . . . . 1 . 4 . . . . . . . . Rewire 56 | . . . . . 16 . . . . . . . 1 14 . 3 1 21 . . . . . . Trap . | . . . . . . . . . . . . . . . . . . . . . . . . . Miscellaneous . | . . . . . . . . . . . . . . . . . . . . . . . . . Route ------- -11/Junkyard -10/Materials -10/Mines (discovered 2 exits: *Mat x2) -9/Materials (discovered 2 exits: *Mat / [*Min]) -9/Mines (discovered 3 exits: *Mat x2 / *Exi) -9/Exiles -8/Mines -8/Materials (discovered 2 exits: *Fac / Gar) -8/Garrison (discovered 3 exits: *Mat x3) -8/Materials (discovered 3 exits: *Fac x2 / Gar) -8/Garrison (discovered 3 exits: *Fac x3) -7/Factory (discovered 2 exits: Sto / Gar) -7/Garrison (discovered 4 exits: *Fac x4) -7/Factory (discovered 2 exits: [*Low] / Gar) -7/Garrison (discovered 3 exits: *Fac x3) -6/Factory -6/Garrison (discovered 4 exits: *Fac x3 / [*Fac]) -5/Factory -5/Garrison (discovered 3 exits: [*Fac x3]) -4/Factory -3/Research -3/Garrison -2/Research -2/Quarantine -2/Section 7 (discovered 1 exit: [*Acc]) History --------- Turn | Location | Event 5 | -11/Junkyard | Discovered new exit (range 16) 154 | -11/Junkyard | Entered Materials 156 | -10/Materials | Discovered new exit (range 11) 318 | -10/Materials | Build established: Mutant 549 | -10/Materials | Entered Mines 550 | -10/Mines | Assembled infested the area 796 | -10/Mines | Learned Materials terminal intel 894 | -10/Mines | Found a damaged Exp. Sensor Array with a note attached 896 | -10/Mines | Found Prototype Device 897 | -10/Mines | Identified Exp. Sensor Array 912 | -10/Mines | Discovered new exit (range 9) 992 | -10/Mines | Found a hidden stash of uninstalled traps 1153 | -10/Mines | Discovered new exit (range 6) 1191 | -10/Mines | Entered Materials 1191 | -9/Materials | Accompanied by 1 ally 1191 | -9/Materials | Evolved 2 slots: Utility x2 1192 | -9/Materials | Loaded intel: 12 terminal locations 1196 | -9/Materials | Led the pair of lost Derelicts to an unsafe place 1382 | -9/Materials | Lost 13 parts (2p4n1u6w) 1453 | -9/Materials | Core integrity fell below 50% 1561 | -9/Materials | Build established: Scavenger-Mutant 2003 | -9/Materials | Discovered new exit (range 7) 2254 | -9/Materials | Discovered new exit (range 7) 2275 | -9/Materials | Entered Mines 2353 | -9/Mines | A weapon hastily lodged in a ceiling crevice suddenly fell to the ground 2403 | -9/Mines | Discovered new exit (range 15) 2432 | -9/Mines | Assisted by bots powering up and referring to "LRC-V3" 2467 | -9/Mines | Discovered new exit (range 15) 2670 | -9/Mines | Learned Materials terminal intel 3229 | -9/Mines | Received a Rocket Launcher from a helpful Derelict 3374 | -9/Mines | Deemed a non-threat by the Exiles lab entrance 3374 | -9/Mines | Discovered new exit (range 5) 3385 | -9/Mines | Entered Exiles 3385 | -9/Exiles | Found Exiles lab destroyed 3385 | -9/Exiles | Accompanied by 3 allies 3545 | -9/Exiles | Opened EX-Vault 3557 | -9/Exiles | Found Prototype Storage 3557 | -9/Exiles | Identified Lightpack 2.0 3664 | -9/Exiles | Learned location of Zion (-6) 3981 | -9/Exiles | Discovered new exit (range 15) 4004 | -9/Exiles | Entered Mines 4004 | -8/Mines | Accompanied by 5 allies 4480 | -8/Mines | Discovered new exit (range 5) 4571 | -8/Mines | Entered Materials 4571 | -8/Materials | Accompanied by 3 allies 4571 | -8/Materials | Evolved 2 slots: Propulsion x1, Utility x1 4572 | -8/Materials | Loaded intel: 12 terminal locations 4855 | -8/Materials | Lost 5 parts (3u2w) 5244 | -8/Materials | Discovered new exit (range 3) 5367 | -8/Materials | Identified exit to Garrison 5381 | -8/Materials | Entered Garrison 5482 | -8/Garrison | Rescued a captive Derelict 5483 | -8/Garrison | Rescued a captive Derelict 5520 | -8/Garrison | Triggered checkpoint 5569 | -8/Garrison | Garrison Relay disabled 5686 | -8/Garrison | Triggered checkpoint 5697 | -8/Garrison | Destroyed 7 combat bots 5787 | -8/Garrison | Discovered new exit (range 15) 5981 | -8/Garrison | Garrison Relay disabled 6102 | -8/Garrison | Triggered checkpoint 6166 | -8/Garrison | Triggered checkpoint 6243 | -8/Garrison | Garrison Relay disabled 6288 | -8/Garrison | Discovered new exit (range 12) 6346 | -8/Garrison | Triggered checkpoint 6480 | -8/Garrison | Triggered checkpoint 6480 | -8/Garrison | Triggered checkpoint 6610 | -8/Garrison | Destroyed 8 combat bots 6620 | -8/Garrison | Installed Relay Interface Framework 6677 | -8/Garrison | Discovered new exit (range 8) 6958 | -8/Garrison | Entered Materials 7141 | -8/Materials | Core integrity fell below 50% 7171 | -8/Materials | Discovered new exit (range 15) 7548 | -8/Materials | Discovered new exit (range 13) 8019 | -8/Materials | System corruption reached 10% 8254 | -8/Materials | Garrison activated, responded to threat 8317 | -8/Materials | Lost 5 parts (1p1n1u2w) 8385 | -8/Materials | Build established: Mutant 8393 | -8/Materials | Lost 3 parts (3u) 8444 | -8/Materials | Identified exit to Garrison 8459 | -8/Materials | Entered Garrison 8566 | -8/Garrison | Triggered checkpoint 8701 | -8/Garrison | Build established: Scavenger-Mutant 9090 | -8/Garrison | Core integrity fell below 20% 9222 | -8/Garrison | Triggered checkpoint 9470 | -8/Garrison | Discovered new exit (range 10) 9577 | -8/Garrison | Triggered checkpoint 9654 | -8/Garrison | Triggered checkpoint 9684 | -8/Garrison | Rescued a captive Derelict 9692 | -8/Garrison | Rescued a captive Derelict 9821 | -8/Garrison | Discovered new exit (range 12) 9878 | -8/Garrison | Triggered checkpoint 9879 | -8/Garrison | Spotted B-75 Beast 9903 | -8/Garrison | Destroyed B-75 Beast 10092 | -8/Garrison | Triggered checkpoint 10164 | -8/Garrison | Discovered new exit (range 10) 10212 | -8/Garrison | Expanded RIF knowledge: Command Fork 10228 | -8/Garrison | Triggered checkpoint 10251 | -8/Garrison | Entered Factory 10251 | -7/Factory | Evolved 2 slots: Utility x2 10252 | -7/Factory | Identified exit to Storage 10313 | -7/Factory | Identified exit to Garrison 10313 | -7/Factory | Entered Garrison 10346 | -7/Garrison | Triggered checkpoint 10390 | -7/Garrison | Garrison Relay disabled 10422 | -7/Garrison | Triggered checkpoint 10472 | -7/Garrison | Lost 3 parts (2n1w) 10497 | -7/Garrison | Discovered new exit (range 5) 10543 | -7/Garrison | Build established: Hauler-Mutant 10880 | -7/Garrison | Triggered checkpoint 10885 | -7/Garrison | Triggered checkpoint 10965 | -7/Garrison | Triggered checkpoint 11003 | -7/Garrison | Lost 5 parts (1p4w) 11008 | -7/Garrison | Destroyed 9 combat bots 11201 | -7/Garrison | Discovered new exit (range 15) 11299 | -7/Garrison | Lost 3 parts (2u1w) 11439 | -7/Garrison | Discovered new exit (range 12) 11502 | -7/Garrison | Triggered checkpoint 11526 | -7/Garrison | Garrison Relay disabled 11641 | -7/Garrison | Garrison Relay disabled 11750 | -7/Garrison | Triggered checkpoint 11788 | -7/Garrison | Expanded RIF knowledge: Program Shield 11801 | -7/Garrison | Garrison Relay disabled 12008 | -7/Garrison | Found embedded Infiltrators 12030 | -7/Garrison | Discovered new exit (range 12) 12036 | -7/Garrison | Triggered checkpoint 12141 | -7/Garrison | Garrison Relay disabled 12142 | -7/Garrison | Triggered checkpoint 12194 | -7/Garrison | Build established: Bothacker-Mutant 12243 | -7/Garrison | Entered Factory 12243 | -7/Factory | Accompanied by 5 allies 12407 | -7/Factory | Discovered new exit (range 10) 12535 | -7/Factory | Fabricated B-48 Gladiator? 12643 | -7/Factory | First assault squad dispatched 12724 | -7/Factory | Garrison activated, responded to threat 12732 | -7/Factory | Identified exit to Garrison 12735 | -7/Factory | Entered Garrison 12735 | -7/Garrison | Accompanied by 6 allies 12758 | -7/Garrison | Triggered checkpoint 12768 | -7/Garrison | Garrison Relay disabled 12876 | -7/Garrison | Triggered checkpoint 12936 | -7/Garrison | Triggered checkpoint 12945 | -7/Garrison | Garrison Relay disabled 12966 | -7/Garrison | Found embedded Infiltrators 13016 | -7/Garrison | Triggered checkpoint 13030 | -7/Garrison | Triggered checkpoint 13075 | -7/Garrison | Discovered new exit (range 12) 13083 | -7/Garrison | Learned Factory security intel 13163 | -7/Garrison | Garrison Relay disabled 13312 | -7/Garrison | Triggered checkpoint 13382 | -7/Garrison | Garrison Relay disabled 13421 | -7/Garrison | Discovered new exit (range 12) 13449 | -7/Garrison | Expanded RIF knowledge: Command Fork 13558 | -7/Garrison | Garrison Relay disabled 13560 | -7/Garrison | Garrison Relay disabled 13567 | -7/Garrison | Garrison Relay disabled 13745 | -7/Garrison | Build established: Botlord-Mutant 13834 | -7/Garrison | Found Quantum Capacitor 13900 | -7/Garrison | Discovered new exit (range 12) 13902 | -7/Garrison | Triggered checkpoint 13906 | -7/Garrison | Core integrity fell below 50% 13924 | -7/Garrison | Garrison Relay disabled 13926 | -7/Garrison | Triggered checkpoint 13989 | -7/Garrison | Entered Factory 13989 | -6/Factory | Accompanied by 10 allies 13989 | -6/Factory | Evolved 2 slots: Utility x2 14035 | -6/Factory | Identified exit to Garrison 14052 | -6/Factory | Entered Garrison 14052 | -6/Garrison | Accompanied by 10 allies 14118 | -6/Garrison | Triggered checkpoint 14127 | -6/Garrison | Garrison Relay disabled 14182 | -6/Garrison | Triggered checkpoint 14202 | -6/Garrison | Triggered checkpoint 14238 | -6/Garrison | Triggered checkpoint 14254 | -6/Garrison | Garrison Relay disabled 14325 | -6/Garrison | Discovered new exit (range 14) 14476 | -6/Garrison | Triggered checkpoint 14487 | -6/Garrison | Discovered new exit (range 6) 14529 | -6/Garrison | Discovered new exit (range 13) 14566 | -6/Garrison | Triggered checkpoint 14570 | -6/Garrison | Garrison Relay disabled 14668 | -6/Garrison | Discovered new exit (range 10) 14737 | -6/Garrison | Garrison Relay disabled 14845 | -6/Garrison | Expanded RIF knowledge: Structural Interface 14963 | -6/Garrison | Spotted B-75 Beast 14984 | -6/Garrison | Assimilated Beast 5a with formatsys_high 15043 | -6/Garrison | Found Fusion Bomb Launcher 15051 | -6/Garrison | Found Fusion Bomb Launcher 15248 | -6/Garrison | Destroyed Beast 5a 15324 | -6/Garrison | Entered Factory 15324 | -5/Factory | Accompanied by 13 allies 15324 | -5/Factory | Evolved 2 slots: Propulsion x2 15414 | -5/Factory | Garrison activated, responded to threat 15472 | -5/Factory | Identified exit to Garrison 15478 | -5/Factory | Entered Garrison 15478 | -5/Garrison | Accompanied by 10 allies 15503 | -5/Garrison | Expanded RIF knowledge: Robot Detection 15583 | -5/Garrison | Spotted B-75 Beast 15590 | -5/Garrison | Triggered checkpoint 15620 | -5/Garrison | Destroyed B-75 Beast 15791 | -5/Garrison | Learned Factory security intel 15797 | -5/Garrison | Found Unknown Piercing Weapon 15797 | -5/Garrison | Identified Enh. Force Lance 15800 | -5/Garrison | Found Enh. Force Lance 15842 | -5/Garrison | Spotted B-75 Beast 15864 | -5/Garrison | Build established: Hauler-Mutant 15866 | -5/Garrison | Destroyed B-75 Beast 15976 | -5/Garrison | Triggered checkpoint 15976 | -5/Garrison | Garrison Relay disabled 16034 | -5/Garrison | Discovered new exit (range 4) 16340 | -5/Garrison | Garrison Relay disabled 16488 | -5/Garrison | Discovered new exit (range 15) 16570 | -5/Garrison | System corruption reached 10% 16600 | -5/Garrison | Lost 3 parts (3u) 16728 | -5/Garrison | Triggered checkpoint 16737 | -5/Garrison | Triggered checkpoint 16920 | -5/Garrison | Triggered checkpoint 16936 | -5/Garrison | Triggered checkpoint 16958 | -5/Garrison | Triggered checkpoint 17158 | -5/Garrison | Triggered checkpoint 17210 | -5/Garrison | Discovered new exit (range 14) 17304 | -5/Garrison | Entered Factory 17304 | -4/Factory | Accompanied by 1 ally 17304 | -4/Factory | Evolved 2 slots: Power x1, Utility x1 17445 | -4/Factory | Discovered new exit (range 8) 17483 | -4/Factory | Found Prototype Device 17483 | -4/Factory | Identified Active Sensor Suite 17489 | -4/Factory | Identified exit to Research 17496 | -4/Factory | Lost 4 parts (3u1w) 17599 | -4/Factory | First assault squad dispatched 17621 | -4/Factory | Entered Research 17621 | -3/Research | Evolved 2 slots: Propulsion x1, Utility x1 17769 | -3/Research | Build established: Hauler-Skirmisher 17911 | -3/Research | First assault squad dispatched 18153 | -3/Research | Spotted B-86 Titan 18279 | -3/Research | Lost 14 parts (1p6n5u2w) 18314 | -3/Research | Core integrity fell below 50% 18317 | -3/Research | System corruption reached 10% 18322 | -3/Research | Identified exit to Garrison 18322 | -3/Research | Entered Garrison 18343 | -3/Garrison | Spotted Executioner 18343 | -3/Garrison | Spotted Executioner 18384 | -3/Garrison | Spotted B-86 Titan 18385 | -3/Garrison | Triggered checkpoint 18388 | -3/Garrison | Triggered checkpoint 18401 | -3/Garrison | Discovered new exit (range 15) 18402 | -3/Garrison | Core integrity fell below 20% 18408 | -3/Garrison | Entered Research 18408 | -2/Research | Evolved 2 slots: Power x1, Weapon x1 18528 | -2/Research | Build established: Mutant 18559 | -2/Research | Core integrity fell below 50% 18590 | -2/Research | Lost 5 parts (3n2u) 18629 | -2/Research | Discovered new exit (range 12) 18634 | -2/Research | Entered Quarantine 18663 | -2/Quarantine | Found Alien Artifact 18663 | -2/Quarantine | Identified Core Reset Matrix 18663 | -2/Quarantine | Used Core Reset Matrix 18667 | -2/Quarantine | Detected hypermatrix surge 18667 | -2/Quarantine | Sensed 14 artifacts in vicinity 18730 | -2/Quarantine | Crushed by falling debris 18741 | -2/Quarantine | Found Hpw. Transdimensional Reconstructor 18743 | -2/Quarantine | Found Transdimensional Reconstructor 18745 | -2/Quarantine | Found Transdimensional Reconstructor 18745 | -2/Quarantine | Warped through subspace 18754 | -2/Quarantine | Warped through subspace 18778 | -2/Quarantine | Found Subatomic Replicator 18884 | -2/Quarantine | Search patrols dispatched 18887 | -2/Quarantine | Spotted Fortress 18905 | -2/Quarantine | Discovered new exit (range 5) 18906 | -2/Quarantine | Entered Section 7 18907 | -2/Section 7 | Sensed 22 artifacts in vicinity 19031 | -2/Section 7 | Found Integrated Dissipator 19031 | -2/Section 7 | Installed Integrated Dissipator, increased core heat dissipation (+20) 19073 | -2/Section 7 | Spotted S7 Guard 19075 | -2/Section 7 | Discovered new exit (range 16) 19098 | -2/Section 7 | Core integrity fell below 20% 19111 | -2/Section 7 | Found Core Regenerator 19111 | -2/Section 7 | Used Core Regenerator, restored core integrity (+362) 19113 | -2/Section 7 | Warped through subspace 19125 | -2/Section 7 | Found Spacefold Activator 19181 | -2/Section 7 | Search patrols dispatched 19206 | -2/Section 7 | Found Core Expander 19207 | -2/Section 7 | Found Core Expander 19208 | -2/Section 7 | Found Core Expander 19230 | -2/Section 7 | Found LRC Energy Well 19230 | -2/Section 7 | Installed LRC Energy Well, increased energy storage capacity (+250) 19232 | -2/Section 7 | Found LRC Storage 19232 | -2/Section 7 | Installed LRC Storage, increased inventory capacity (+2) 19262 | -2/Section 7 | Spotted B-99 Colossus 19277 | -2/Section 7 | Spotted Striker 19277 | -2/Section 7 | Spotted Striker 19277 | -2/Section 7 | Spotted Executioner 19294 | -2/Section 7 | Integrated with Sigix Exoskeleton 19299 | -2/Section 7 | Installed Core Expander, added new Utility slot 19303 | -2/Section 7 | Spotted Executioner 19329 | -2/Section 7 | Spotted Executioner 19329 | -2/Section 7 | Spotted Executioner 19349 | -2/Section 7 | Destroyed by Executioner with Helical Railgun Last Messages --------------- 19341_ System corrupted: Energy discharge (-139). 19342_ Penetrated by Slug. 19342_ Slug penetrates Construction Supplies. 19342_ Construction Supplies damaged. 19342_ Penetrated by Slug. 19344_ C-30 ARC bursts open, deploying its payload. 19344_ G-73 Enforcer unfolds itself. 19344_ B-74 Champion unfolds itself. 19344_ G-73 Enforcer unfolds itself. 19344_ I-47 Archangel unfolds itself. 19344_ C-30 ARC bursts open, deploying its payload. 19344_ P-80 Master unfolds itself. 19344_ M-36 Artificer unfolds itself. 19348_ L2 Monitoring Station destroyed. 19349_ P-80 Master resets M-36 Artificer, system corruption cleaned. 19349_ C-30 ARC bursts open, deploying its payload. 19349_ G-73 Enforcer unfolds itself. 19349_ B-74 Champion unfolds itself. 19349_ E-15 Imp unfolds itself. 19349_ Penetrated by Slug. Map ----- +----------------------------------------------------+ | ########" """""""""#!!" " | | ########" " #### #! | | ########" ## | | ######T# "" | | " """ | | " " "" | | ##### " "" | | #####" " " "" | | #####" " "" """" | | #####" " " " """ """" | | #####" """ " "" """" | | #####" " " " """" " " | | #####" " " "" " | | ##### p " """"""" | | ##### """""" " """""" | | #####" """"""""" " """"""" | | #####" p"""""" | | #####" | | #####" " | | #####" """""" p """ | | #####" """"""""" " " | | #####" """""" """"" | | #####" """ """" " " " | | #####" m """"" " " " " | | #####" p gp " " " " " | | #####" bp X " """""""" | | #####" b gb%g "" " " " " | | #####" g g "" T " " " " | | #####" % e """" " " " " | | ##### "%" """" "" h h E | | #####" "i """" "" """ "" E | | ? #####"" k R """ " | | ????####""" " " "" """"""""" | | ??????##""" """" " """""""""" | | ???????#""" """ """ "" """""""""" | | ?????????? """""" """ | | ???????????? """"" | | ???????????? k "" | | ???????????? """"" " | | ?????????????? """"" | | #??????????????? """ | | #?????????????????? """"" | | #??????????????????? | | #?????????????????? | | #?????????????????? | | #??????????????????? """""""""" " | | #?????????????????????""" ###"""""""""""" | | #?????????????????????""" ###"""""""""""" | | #??????????????????????#### ###++############### | | #?????????????????????????#????# ############### | +----------------------------------------------------+ Best States ------------- Heat Dissipation 139 Energy Generation 47 Energy Capacity 600 Matter Stores 300 Matter Capacity 300 Sight Range 16 Robot Scan Range 20 Terrain Scan Range 14 Terrain Scan Density 10 Jamming Range 14 Power Amplification 30 Additional Mass Support 12 Armor Coverage 675 Resistance: KI 50 Resistance: TH 50 Resistance: EX 50 Resistance: EM 50 Resistance: I 50 Resistance: S 50 Resistance: P 50 Core Shielding 20 Weapon Cycling 25 Evasion (%) 69 Targeting Accuracy 20 Melee Accuracy 6 Target Analysis 6 Core Analysis 6 Recoil Reduction 6 Offensive Hacking 10 Relay Coupler Types 5 Relay Coupler Value 113 Authchip Count 6 Item Schematics ----------------- Cld. Phase Gun | -2/Section 7 | Archive Robot Schematics ------------------ C-65 Expert | -2/Section 7 | Archive Fabricated ------------ B-48 Gladiator | x3 | -7/Factory | Preloaded, Authchip Alien Tech Used ----------------- Core Reset Matrix Transdimensional Reconstructor Integrated Dissipator Core Regenerator High-powered Transdimensional Reconstructor Spacefold Activator LRC Energy Well LRC Storage Sigix Exoskeleton Sigix Sheargun Core Expander Achievements -------------- None Challenges ------------ None Game ------ Seed MappingAntimissileSource Manual? 0 Play Time 02:26:33 Cumulative 702.7 hours Start 2023.07.24 @ 11:54:14 End 2023.07.24 @ 14:20:53 Sessions 1 Manual Loads 0 Difficulty Rogue Special Mode None Game No. 455 Rogue 448 Adventurer 0 Explorer 7 Win Type - Total 51 Types 19/5/18/2/0/1/4/1/1 Lore% 88 Gallery% 96 Achievement% 82 Wizard Run 0 Options --------- ASCII 0 Keyboard 0 Movement Numpad Keybinds 0 Fullscreen 1 Font 18/X11Bold Map View 76x50 Tactical HUD 1 Map Filters NONE Filters NONE Steam 1 RUN: f59d7770-9fa3-4e75-8947-295cd1f0e60f